fUST/lending_fUST_20250824
["ID","MTS","AMOUNT","RATE_DAILY","PERIOD"]
[381049261,1755972943926,209.94342706,0.00026806,6]
[381049262,1755972954250,-293.0,0.00028429,2]
[381049263,1755972954280,-293.0,0.00028435,2]
[381049264,1755972974240,-293.0,0.00028464,2]
[381049265,1755972974270,-209.94342706,0.00028533,10]
[381049266,1755972978128,8994.12314588,0.0002808,2]
[381049267,1755972978150,8828.01,0.0002808,2]
[381049268,1755972978172,8950.29286449,0.0002808,2]
[381049269,1755972978193,3548.59534423,0.0002808,2]
[381049270,1755973002272,168.0,0.00027474,2]
[381049271,1755973011993,168.0,0.00027251,2]
[381049272,1755973017062,168.0,0.00028292,2]
[381049273,1755973023329,500.0,0.00027397,5]
[381049274,1755973025510,5000.0,0.00028443,2]
[381049275,1755973041705,5000.0,0.00028543,2]
[381049277,1755973054303,-160.0,0.00028603,2]
[381049278,1755973054333,-844.50316758,0.00028605,2]
[381049279,1755973054366,-376.14580871,0.00028605,2]
[381049280,1755973054396,-293.0,0.00028606,2]
[381049281,1755973071216,5000.0,0.00028643,2]
[381049282,1755973079130,-168.0,0.00028759,2]
[381049283,1755973086999,5000.0,0.00028843,2]
[381049284,1755973099472,9105.33944215,0.00027615,2]
[381049285,1755973103017,894.67055785,0.00028943,2]
[381049286,1755973114394,-4105.32944215,0.00028943,2]
[381049287,1755973116993,491.15002554,0.000199,2]
[381049288,1755973117062,491.15002551,0.00026806,6]
[381049289,1755973117116,491.15002551,0.00028533,10]
[381049290,1755973117151,315.90103914,0.00021627,2]
[381049291,1755973117175,175.24898637,0.00021627,2]
[381049292,1755973117361,491.15002551,0.0002508,2]
[381049293,1755973117555,491.15002551,0.00023353,2]
[381049294,1755973126762,-5000.0,0.00028943,2]
[381049295,1755973135081,0.01,0.00028943,2]
[381049296,1755973139545,-4999.99,0.00028943,2]
[381049297,1755973148998,0.03,0.00028943,7]
[381049298,1755973154388,-222.11585743,0.00028943,7]
[381049299,1755973154420,-276.0,0.00028943,7]
[381049300,1755973154451,-4003.77828514,0.00028943,2]
[381049301,1755973158126,-996.22171486,0.00028943,2]
[381049302,1755973165612,5000.0,0.00028943,2]
[381049303,1755973165671,894.67055785,0.00028943,7]
[381049304,1755973165912,1042.27567082,0.000234,2]
[381049305,1755973167296,894.67055785,0.00028943,7]
[381049306,1755973167326,175.94978376,0.00028943,7]
[381049307,1755973167708,1652.71204742,0.00028643,7]
[381049308,1755973174417,-718.72077409,0.00028943,7]
[381049309,1755973180762,5000.0,0.00028943,2]
[381049310,1755973188168,-168.0,0.00029002,7]
[381049311,1755973188198,-293.0,0.00029043,7]
[381049312,1755973192453,-168.0,0.00029056,2]
[381049313,1755973192482,-168.0,0.00029083,2]
[381049314,1755973192514,-168.0,0.00029104,2]
[381049315,1755973192542,-293.0,0.00029124,7]
[381049316,1755973195104,660.62982505,0.00029141,2]
[381049317,1755973196018,5000.0,0.00029143,2]
[381049318,1755973204457,-168.0,0.00029152,2]
[381049319,1755973204488,-168.0,0.00029157,2]
[381049320,1755973204518,-300.0,0.00029171,2]
[381049321,1755973204547,-300.0,0.00029171,2]
[381049322,1755973204574,-300.0,0.00029171,2]
[381049323,1755973204602,-300.0,0.00029171,2]
[381049324,1755973204629,-300.0,0.00029171,2]
[381049325,1755973204657,-1200.0,0.00029171,2]
[381049326,1755973204687,-300.0,0.00029171,2]
[381049327,1755973204715,-789.37,0.00029172,2]
[381049328,1755973204742,-844.50316758,0.00029172,2]
[381049329,1755973211266,2745.38017495,0.00029143,2]
[381049330,1755973217741,168.0,0.00027974,2]
[381049331,1755973220423,168.0,0.000286,2]
[381049332,1755973224493,-2254.61982505,0.00029143,2]
[381049333,1755973226967,5000.0,0.00029143,2]
[381049334,1755973230910,160.0,0.00028,7]
[381049335,1755973231316,160.0,0.00029,10]
[381049336,1755973244486,-160.0,0.00029171,2]
[381049337,1755973244516,-160.0,0.00029172,2]
[381049338,1755973256981,5000.0,0.00029343,2]
[381049339,1755973258586,172.99193307,0.0002931,2]
[381049340,1755973258909,172.99193306,0.00029311,2]
[381049341,1755973259242,172.99193306,0.00029312,2]
[381049342,1755973260511,376.14580871,0.00029143,2]
[381049343,1755973262924,4104.8883921,0.00028505,2]
[381049344,1755973262946,3800.72408843,0.00028505,2]
[381049345,1755973272918,5000.0,0.00029343,2]
[381049346,1755973284556,-300.0,0.00029409,2]
[381049347,1755973284583,-162.0,0.00029409,2]
[381049348,1755973284610,-1200.0,0.0002941,2]
[381049349,1755973285017,403.06987579,0.00021627,2]
[381049350,1755973285057,403.06987579,0.00026806,6]
[381049351,1755973285185,403.06987579,0.00023353,2]
[381049352,1755973285231,403.06987579,0.00028533,10]
[381049353,1755973285732,403.06987579,0.0002508,2]
[381049354,1755973287874,403.06987588,0.000199,2]
[381049355,1755973288586,2581.59074517,0.00029343,2]
[381049356,1755973304561,-2418.40925483,0.00029343,2]
[381049357,1755973319741,5000.0,0.00029343,2]
[381049358,1755973324820,-293.0,0.00029412,2]
[381049359,1755973324848,-293.0,0.00029422,2]
[381049360,1755973335810,5000.0,0.00029443,2]
[381049361,1755973344575,-183.09580328,0.00029473,5]
[381049362,1755973344603,-500.0,0.00029473,5]
[381049363,1755973344630,-506.22732636,0.00029473,5]
[381049364,1755973344658,-500.0,0.00029473,5]
[381049365,1755973344685,-389.23249397,0.00029473,5]
[381049366,1755973344714,-459.93366049,0.00029476,2]
[381049367,1755973351296,500.0,0.00028053,2]
[381049368,1755973351526,4423.0314318,0.00029543,2]
[381049369,1755973358597,826.80000269,0.00028989,2]
[381049370,1755973364682,-576.9685682,0.00029543,2]
[381049371,1755973366710,5000.0,0.00029443,2]
[381049372,1755973382049,5000.0,0.00029643,2]
[381049373,1755973388638,756.48,0.00029172,2]
[381049374,1755973394566,-388.11484363,0.00029665,2]
[381049375,1755973394594,-173.48406566,0.00029738,2]
[381049376,1755973397793,5000.0,0.00029743,2]
[381049377,1755973413600,3876.81218142,0.00029743,2]
[381049378,1755973414574,-1123.18781858,0.00029743,2]
[381049379,1755973420142,893.0958294,0.00029072,2]
[381049380,1755973429122,5000.0,0.00029743,2]
[381049381,1755973434673,-293.0,0.00029765,2]
[381049382,1755973434702,-168.0,0.00029838,2]
[381049383,1755973441436,-160.0,0.00029845,2]
[381049384,1755973441465,-168.0,0.00029846,2]
[381049385,1755973444185,5000.0,0.00029943,2]
[381049386,1755973451330,322.45590069,0.000199,2]
[381049387,1755973451376,322.45590063,0.00023353,2]
[381049388,1755973451418,322.45590063,0.0002508,2]
[381049389,1755973451653,322.45590063,0.00026806,6]
[381049390,1755973451933,322.45590063,0.00028533,10]
[381049391,1755973459807,5000.0,0.00030043,2]
[381049392,1755973474691,-500.0,0.0003013,7]
[381049393,1755973475851,5000.0,0.00030043,2]
[381049395,1755973479483,170.7703499,0.00029143,7]
[381049396,1755973483320,170.7703499,0.00029143,7]
[381049397,1755973483458,170.7703499,0.00029143,7]
[381049398,1755973489996,-322.45590063,0.00030259,13]
[381049399,1755973491801,5000.0,0.00030243,2]
[381049400,1755973507634,5000.0,0.00030443,2]
[381049405,1755973523428,5000.0,0.00030543,2]
[381049407,1755973538704,5000.0,0.00030643,2]
[381049408,1755973542327,163.19149034,0.00029343,7]
[381049409,1755973542741,170.7703499,0.00029143,7]
[381049410,1755973545705,163.19149034,0.00029343,7]
[381049411,1755973546659,170.7703499,0.00029143,7]
[381049412,1755973553851,272.36045322,0.00030643,2]
[381049413,1755973553874,4727.63954678,0.00030643,2]
[381049414,1755973571178,5000.0,0.00030843,2]
[381049415,1755973586851,5000.0,0.00030943,2]
[381049416,1755973603203,2326.58271003,0.00030943,2]
[381049417,1755973604799,-1600.0,0.00030962,2]
[381049418,1755973604850,-1800.01,0.00030963,4]
[381049419,1755973614534,-3199.99,0.00030963,4]
[381049420,1755973614563,-155.0,0.00031,120]
[381049421,1755973617062,257.96472062,0.000199,2]
[381049422,1755973617224,257.9647205,0.00030259,13]
[381049423,1755973617258,257.9647205,0.0002508,2]
[381049424,1755973617295,257.9647205,0.00021627,2]
[381049425,1755973617571,257.9647205,0.00026806,6]
[381049426,1755973617668,257.9647205,0.00028533,10]
[381049427,1755973617710,257.9647205,0.00023353,2]
[381049428,1755973618062,199.0,0.000309,120]
[381049429,1755973622093,199.0,0.000309,120]
[381049430,1755973625538,724.96,0.00029172,2]
[381049432,1755973650798,192.40341798,0.0002898,5]
[381049433,1755973654847,-804.64325207,0.00031268,2]
[381049434,1755973658001,8390.72349586,0.0002699,2]
[381049435,1755973658023,10000.01,0.0002699,2]
[381049436,1755973658046,9807.60658202,0.0002699,2]
[381049437,1755973658068,9076.05,0.0002699,2]
[381049438,1755973658090,1285.27695638,0.0002699,2]
[381049439,1755973658112,2673.42728997,0.0002699,2]
[381049440,1755973658134,5000.01,0.0002699,2]
[381049441,1755973658157,5272.37045322,0.0002699,2]
[381049442,1755973658180,4332.08631952,0.0002699,2]
[381049443,1755973658305,5000.01,0.0002699,2]
[381049444,1755973658327,5000.01,0.0002699,2]
[381049445,1755973658349,4355.09819874,0.0002699,2]
[381049446,1755973658371,10000.01,0.0002699,2]
[381049447,1755973658393,3487.6989503,0.0002699,2]
[381049448,1755973658416,5000.01,0.0002699,2]
[381049449,1755973658438,2731.73049679,0.0002699,2]
[381049450,1755973658460,8587.8712572,0.0002699,2]
[381049451,1755973671638,251.4477266,0.000209,2]
[381049452,1755973678967,5000.0,0.00029943,2]
[381049453,1755973682858,817.16,0.00028979,10]
[381049454,1755973687322,4182.85,0.00029943,2]
[381049455,1755973687345,817.15,0.00029943,2]
[381049456,1755973688364,238091.61348618,0.00028989,32]
[381049457,1755973694928,-200.0,0.0003,120]
[381049458,1755973695432,5000.0,0.00029943,2]
[381049459,1755973697906,4600.01,0.00029,2]
[381049460,1755973697927,10000.01,0.00029,2]
[381049461,1755973697949,1263.51,0.00029,2]
[381049462,1755973703398,7919.35,0.00023,2]
[381049463,1755973703420,238.6910162,0.00023,2]
[381049464,1755973703442,1860.53853344,0.00023,2]
[381049465,1755973703464,2256.68499654,0.00023,2]
[381049466,1755973704532,500.30394841,0.00028988,2]
[381049467,1755973713346,1486.54105505,0.00029643,2]
[381049468,1755973714035,644.38258719,0.00028988,2]
[381049469,1755973714909,-3513.45894495,0.00029643,2]
[381049470,1755973715435,500.0,0.00028988,2]
[381049471,1755973715464,500.0,0.00028988,2]
[381049472,1755973715491,500.0,0.00028988,2]
[381049473,1755973715519,500.0,0.00028988,2]
[381049474,1755973715547,500.0,0.00028988,2]
[381049475,1755973715576,473.0921101,0.00028988,2]
[381049476,1755973715599,26.9078899,0.00028988,2]
[381049477,1755973715626,500.0,0.00028988,2]
[381049478,1755973715657,500.0,0.00028988,2]
[381049479,1755973715686,500.0,0.00028988,2]
[381049480,1755973715714,500.0,0.00028988,2]
[381049481,1755973715740,500.0,0.00028988,2]
[381049482,1755973715768,500.0,0.00028988,2]
[381049483,1755973715795,500.0,0.00028988,2]
[381049484,1755973715823,524.93368169,0.00028988,2]
[381049485,1755973715851,356.13504569,0.00028988,2]
[381049486,1755973715877,500.0,0.00028988,2]
[381049487,1755973715904,500.0,0.00028988,2]
[381049488,1755973715933,500.0,0.00028988,2]
[381049489,1755973715959,500.0,0.00028988,2]
[381049490,1755973715984,500.0,0.00028988,2]
[381049491,1755973716011,260.86492987,0.00028988,2]
[381049492,1755973716048,500.0,0.00028988,2]
[381049493,1755973716075,500.0,0.00028988,2]
[381049494,1755973716100,500.0,0.00028988,2]
[381049495,1755973716126,500.0,0.00028988,2]
[381049496,1755973716153,500.0,0.00028988,2]
[381049497,1755973716179,331.16845285,0.00028988,2]
[381049498,1755973716200,168.83154715,0.00028988,2]
[381049499,1755973716226,506.39974111,0.00028988,2]
[381049500,1755973716254,500.0,0.00028988,2]
[381049501,1755973716283,539.961985,0.00028988,2]
[381049502,1755973716312,500.0,0.00028988,2]
[381049503,1755973716338,451.25628704,0.00028988,2]
[381049504,1755973716453,500.0,0.00028988,2]
[381049505,1755973716480,35.24071611,0.00028988,2]
[381049506,1755973716502,464.75928389,0.00028988,2]
[381049507,1755973716528,373.89799678,0.00028988,2]
[381049508,1755973716556,500.0,0.00028988,2]
[381049509,1755973716610,500.0,0.00028988,2]
[381049510,1755973716671,500.0,0.00028988,2]
[381049511,1755973716716,634.188,0.00028988,2]
[381049512,1755973716743,28.36471664,0.00028988,2]
[381049513,1755973716768,163.19149034,0.00028988,2]
[381049514,1755973716792,308.44379302,0.00028988,2]
[381049515,1755973716819,646.46015107,0.00028988,2]
[381049516,1755973716853,500.0,0.00028988,2]
[381049517,1755973716892,500.0,0.00028988,2]
[381049518,1755973716926,500.0,0.00028988,2]
[381049519,1755973716956,500.0,0.00028988,2]
[381049520,1755973716982,500.0,0.00028988,2]
[381049521,1755973717010,379.88866352,0.00028988,2]
[381049522,1755973717036,500.0,0.00028988,2]
[381049523,1755973717069,500.0,0.00028988,2]
[381049524,1755973717131,500.0,0.00028988,2]
[381049525,1755973717180,224.49330396,0.00028988,2]
[381049526,1755973717215,170.7703499,0.00028988,2]
[381049527,1755973717255,104.73634614,0.00028988,2]
[381049528,1755973717311,500.0,0.00028988,2]
[381049529,1755973717367,500.0,0.00028988,2]
[381049530,1755973717409,500.0,0.00028988,2]
[381049531,1755973717450,500.0,0.00028988,2]
[381049532,1755973717508,500.0,0.00028988,2]
[381049533,1755973717550,500.0,0.00028988,2]
[381049534,1755973717590,500.0,0.00028988,2]
[381049535,1755973717632,500.0,0.00028988,2]
[381049536,1755973717679,500.0,0.00028988,2]
[381049537,1755973717730,500.0,0.00028988,2]
[381049538,1755973717771,500.0,0.00028988,2]
[381049539,1755973717812,500.0,0.00028988,2]
[381049540,1755973717864,184.04681395,0.00028988,2]
[381049541,1755973717909,500.0,0.00028988,2]
[381049542,1755973717955,500.0,0.00028988,2]
[381049543,1755973718123,363.64062924,0.00028988,2]
[381049544,1755973718179,500.0,0.00028988,2]
[381049545,1755973718211,500.0,0.00028988,2]
[381049546,1755973718297,89.58621067,0.00028989,2]
[381049547,1755973718458,3562.56845182,0.00027498,2]
[381049548,1755973718481,1853.74891519,0.00027498,2]
[381049549,1755973718503,1652.71204742,0.00027498,2]
[381049550,1755973718524,5000.01,0.00027498,2]
[381049551,1755973718546,4332.01,0.00027498,2]
[381049552,1755973718567,9664.01,0.00027498,2]
[381049553,1755973718588,4461.11909831,0.00027498,2]
[381049554,1755973718610,7500.01,0.00027498,2]
[381049555,1755973718632,5647.00366484,0.00027498,2]
[381049556,1755973718653,7647.07822257,0.00027498,2]
[381049557,1755973718674,9414.01,0.00027498,2]
[381049558,1755973718696,9414.01,0.00027498,2]
[381049559,1755973718716,9066.13819222,0.00027498,2]
[381049560,1755973719743,1802.2723017,0.00023,2]
[381049561,1755973720374,2003.32131364,0.00023,2]
[381049562,1755973723417,978.98813247,0.0002,2]
[381049563,1755973724659,1215.85317699,0.00021,2]
[381049564,1755973724961,1303.91412696,0.00023,2]
[381049565,1755973724986,2937.5833186,0.00023,2]
[381049566,1755973725453,203.28232722,0.00021,2]
[381049567,1755973725919,1524.21604025,0.00023,2]
[381049568,1755973727541,280466.15834806,0.00028989,30]
[381049569,1755973728057,5135.92831393,0.00019063,2]
[381049570,1755973728079,9000.01,0.00019063,2]
[381049571,1755973728101,8031.79037102,0.00019063,2]
[381049572,1755973728123,9599.8475886,0.00019063,2]
[381049573,1755973728144,9733.2522299,0.00019063,2]
[381049574,1755973728167,9091.60094054,0.00019063,2]
[381049575,1755973728190,9670.752366,0.00019063,2]
[381049576,1755973728211,1830.48927228,0.00019063,2]
[381049577,1755973728234,8637.39641077,0.00019063,2]
[381049578,1755973728256,7903.68140115,0.00019063,2]
[381049579,1755973728279,9568.11643984,0.00019063,2]
[381049580,1755973728303,1764.5235067,0.00019063,2]
[381049581,1755973728326,6883.82503545,0.00019063,2]
[381049582,1755973728347,8702.59602708,0.00019063,2]
[381049583,1755973728370,7971.001402,0.00019063,2]
[381049584,1755973728393,8502.99387732,0.00019063,2]
[381049585,1755973728415,7000.01,0.00019063,2]
[381049586,1755973728436,8272.68370471,0.00019063,2]
[381049587,1755973728459,7614.87551422,0.00019063,2]
[381049588,1755973728480,447.60836473,0.00019063,2]
[381049589,1755973728503,7277.11393842,0.00019063,2]
[381049590,1755973728525,4700.01,0.00019063,2]
[381049591,1755973728547,9637.33,0.00019063,2]
[381049592,1755973728569,9904.61857476,0.00019063,2]
[381049593,1755973728593,9658.688787,0.00019063,2]
[381049594,1755973728615,8494.26275136,0.00019063,2]
[381049595,1755973728637,1291.1005794,0.00019063,2]
[381049596,1755973728660,3888.23539586,0.00019063,2]
[381049597,1755973728682,8412.69832678,0.00019063,2]
[381049598,1755973728712,246672.92264146,0.00019063,2]
[381049599,1755973783647,-297.48260736,0.0002249,2]
[381049600,1755973788637,-98.0632974,0.0002249,2]
[381049601,1755973788661,-87.66518362,0.00024216,2]
[381049602,1755973790490,-233.28993604,0.00024216,2]
[381049603,1755973792043,-74.5907851,0.00024216,2]
[381049606,1755973806014,-188.6357583,0.00021164,2]
[381049607,1755973808107,-234.32346573,0.00021164,2]
[381049608,1755973814697,-188.1815586,0.00021164,2]
[381049609,1755973817449,-252.91233977,0.00021164,2]
[381049610,1755973820028,-226.03313518,0.00021164,2]
[381049611,1755973821703,-195.30740002,0.00021164,2]
[381049612,1755973826529,-285.35412103,0.00021164,2]
[381049613,1755973830492,-355.51118898,0.00021164,2]
[381049623,1755973832348,-2161.98071747,0.00021164,2]
[381049625,1755973832361,-911.76031492,0.00021164,2]
[381049627,1755973832370,-151.0,0.00024216,2]
[381049628,1755973832380,-150.77383924,0.00025205,2]
[381049629,1755973832389,-716.004299,0.00025663,2]
[381049630,1755973832399,-11204.3734805,0.00025779,2]
[381049632,1755973832408,-395.54590476,0.00025943,4]
[381049633,1755973832418,-151.77234149,0.00026465,2]
[381049635,1755973832427,-5000.0,0.00027343,2]
[381049637,1755973832437,-36547.68439409,0.00027473,2]
[381049639,1755973832450,-11393.04819555,0.00027473,2]
[381049641,1755973832459,-500.0,0.00027473,5]
[381049643,1755973832468,-500.0,0.00027473,5]
[381049644,1755973832477,-500.0,0.00027473,5]
[381049645,1755973832487,-500.0,0.00027473,5]
[381049646,1755973832498,-273.0,0.00027497,2]
[381049648,1755973832508,-160471.24309504,0.00027498,2]
[381049649,1755973832517,-867.5191494,0.00027625,2]
[381049651,1755973832526,-395.54590476,0.00027669,8]
[381049653,1755973832536,-301.50220112,0.00027726,2]
[381049655,1755973832545,-867.51914936,0.00027941,2]
[381049658,1755973832555,-1000.0,0.00028021,5]
[381049661,1755973832564,-1000.0,0.00028021,5]
[381049662,1755973832573,-867.51914936,0.00028257,2]
[381049664,1755973832583,-1500.0,0.00028568,5]
[381049666,1755973832592,-1500.0,0.00028568,5]
[381049668,1755973832601,-867.51914936,0.00028573,2]
[381049670,1755973832610,-1210.00370866,0.00028844,22]
[381049672,1755973832619,-13926.06305558,0.00028889,2]
[381049674,1755973832628,-867.51914936,0.00028889,2]
[381049676,1755973832638,-36441.87611877,0.00028889,3]
[381049678,1755973832647,-500.0,0.00028973,5]
[381049680,1755973832656,-500.0,0.00028973,5]
[381049682,1755973832666,-500.0,0.00028973,5]
[381049684,1755973832676,-500.0,0.00028973,5]
[381049686,1755973832685,-3676.61266484,0.00028989,2]
[381049688,1755973832695,-672968.74676957,0.00028989,20]
[381049689,1755973832716,-15308.66766102,0.00028989,20]
[381049690,1755973832727,-494.85788473,0.00028989,20]
[381049691,1755973832738,-3942.06,0.00028989,20]
[381049698,1755973838290,-199.0,0.00026749,20]
[381049699,1755973838300,-151.0,0.00027473,2]
[381049700,1755973838309,-451.06781103,0.00027497,2]
[381049702,1755973838321,-151.0,0.00028989,2]
[381049704,1755973838330,-2467.06323457,0.00028989,20]
[381049714,1755973839738,-251096.23086136,0.00028989,20]
[381049715,1755973839753,-68920.73050466,0.00028989,20]
[381049716,1755973839773,-1450107.42965255,0.00028989,20]
[381049717,1755973839783,-395.50999033,0.00028989,2]
[381049718,1755973839795,-698.61212129,0.00028989,2]
[381049719,1755973839805,-2592.45444617,0.00028989,2]
[381049720,1755973839814,-1171.52,0.00029,7]
[381049721,1755973839825,-577.3,0.00029,7]
[381049722,1755973839835,-500.0,0.00029116,5]
[381049724,1755973839848,-500.0,0.00029116,5]
[381049725,1755973839858,-395.54590476,0.00029396,11]
[381049726,1755973839868,-1000.0,0.00029521,5]
[381049727,1755973839879,-1000.0,0.00029521,5]
[381049728,1755973839891,-1000.0,0.00029521,5]
[381049730,1755973839902,-260.0,0.000297,2]
[381049732,1755973839912,-298.26677152,0.00029943,2]
[381049733,1755973839922,-640.75815153,0.0003,4]
[381049734,1755973839932,-1500.0,0.00030068,5]
[381049735,1755973839941,-1500.0,0.00030068,5]
[381049736,1755973839951,-500.0,0.00030616,5]
[381049737,1755973839959,-500.0,0.00030616,5]
[381049738,1755973839969,-395.54590476,0.00031123,15]
[381049739,1755973839978,-408.0,0.00031208,2]
[381049740,1755973839988,-724.96,0.00031363,4]
[381049741,1755973839997,-3303.89281076,0.0003137,2]
[381049742,1755973840006,-500.0,0.00031673,5]
[381049743,1755973840016,-197.322732,0.00031813,2]
[381049744,1755973840025,-1000.0,0.00032221,5]
[381049745,1755973840034,-2520.749,0.00032659,2]
[381049746,1755973840044,-1500.0,0.00032768,5]
[381049747,1755973840053,-395.54590486,0.00032849,19]
[381049748,1755973840062,-395.54590476,0.00032849,19]
[381049749,1755973840072,-500.0,0.00032873,5]
[381049750,1755973840081,-500.0,0.00032873,5]
[381049751,1755973840090,-527.88255609,0.00032873,5]
[381049752,1755973840099,-500.0,0.00032873,5]
[381049753,1755973840109,-500.0,0.00032873,5]
[381049754,1755973840118,-500.0,0.00032873,5]
[381049755,1755973840127,-500.0,0.00032873,5]
[381049756,1755973840136,-647.07451257,0.00032873,5]
[381049757,1755973840146,-500.0,0.00032873,5]
[381049758,1755973840155,-500.0,0.00032873,5]
[381049759,1755973840164,-500.0,0.00032873,5]
[381049760,1755973840173,-500.0,0.00032873,5]
[381049761,1755973840182,-500.0,0.00032873,5]
[381049762,1755973840191,-194.43004113,0.0003288,30]
[381049763,1755973840201,-194.43,0.0003288,30]
[381049764,1755973840218,-161.00329835,0.0003288,30]
[381049766,1755973840238,-161.00329835,0.0003288,30]
[381049767,1755973840247,-161.0,0.0003288,30]
[381049768,1755973840257,-199.0,0.000332,120]
[381049769,1755973840266,-199.0,0.000332,120]
[381049770,1755973840275,-500.0,0.000332,120]
[381049771,1755973840285,-155.0,0.000333,120]
[381049772,1755973840294,-1963.03441848,0.00033316,5]
[381049774,1755973840303,-1000.0,0.00033421,5]
[381049776,1755973840312,-1000.0,0.00033421,5]
[381049778,1755973840322,-500.0,0.00033474,120]
[381049780,1755973840331,-724.96,0.00033555,120]
[381049782,1755973840341,-340.181,0.00033712,36]
[381049784,1755973840350,-500.0,0.00033748,120]
[381049786,1755973840359,-153.0,0.00033933,30]
[381049788,1755973840369,-1500.0,0.00033968,5]
[381049790,1755973840378,-1171.52,0.00034,14]
[381049792,1755973840387,-577.3,0.00034,7]
[381049794,1755973840397,-408.0,0.00034208,2]
[381049796,1755973840406,-2000.0,0.00034516,5]
[381049798,1755973840415,-395.54590476,0.00034576,23]
[381049800,1755973840424,-2354.07624526,0.00034725,2]
[381049802,1755973840435,-15863.53,0.000351,14]
[381049804,1755973840444,-500.0,0.0003526,5]
[381049807,1755973840453,-500.0,0.00035318,5]
[381049809,1755973840462,-31971.5543026,0.00035429,3]
[381049810,1755973840472,-300.0,0.00035473,5]
[381049812,1755973840480,-155.0,0.000355,120]
[381049814,1755973840490,-724.96,0.00035747,120]
[381049816,1755973840499,-501.27875092,0.00035773,2]
[381049818,1755973840509,-500.0,0.00035773,5]
[381049820,1755973840518,-500.0,0.00035773,5]
[381049822,1755973840528,-500.0,0.00035773,5]
[381049824,1755973840537,-217.0334113,0.00035837,3]
[381049827,1755973840547,-232.37252479,0.00035837,3]
[381049828,1755973840556,-254.16193798,0.00035847,2]
[381049830,1755973840566,-500.0,0.00035847,2]
[381049833,1755973840577,-500.0,0.00035847,2]
[381049835,1755973840587,-500.0,0.00035847,2]
[381049836,1755973840596,-500.0,0.00035847,2]
[381049838,1755973840605,-434.4409436,0.00035847,2]
[381049840,1755973840615,-223800.880118,0.00035858,3]
[381049843,1755973840624,-370000.0,0.00035868,2]
[381049844,1755973840633,-500.0,0.00035873,5]
[381049846,1755973840642,-500.0,0.00035873,5]
[381049849,1755973840651,-500.0,0.00035873,5]
[381049851,1755973840661,-252.41603684,0.00035873,5]
[381049853,1755973840670,-500.0,0.00035873,5]
[381049854,1755973840680,-500.0,0.00035873,5]
[381049856,1755973840689,-187.01279824,0.00035873,5]
[381049858,1755973840699,-500.0,0.00035873,5]
[381049860,1755973840708,-500.0,0.00035873,5]
[381049863,1755973840718,-500.0,0.00035873,5]
[381049865,1755973840727,-500.0,0.00035873,5]
[381049867,1755973840736,-500.0,0.00035873,5]
[381049868,1755973840745,-500.0,0.00035873,5]
[381049870,1755973840754,-500.0,0.00035873,5]
[381049872,1755973840764,-151.48063496,0.00035988,120]
[381049874,1755973840773,-500.0,0.000361,5]
[381049876,1755973840783,-395.54590476,0.00036302,26]
[381049878,1755973840792,-1000.0,0.00036321,5]
[381049880,1755973840801,-1000.0,0.00036321,5]
[381049882,1755973840810,-1000.0,0.00036421,5]
[381049884,1755973840819,-1000.0,0.00036421,5]
[381049886,1755973840828,-500.0,0.00036421,5]